[Event "Tata Steel-A 80th"]
[Site "Wijk aan Zee"]
[Date "2018.01.20"]
[Round "7"]
[White "Karjakin, Sergey"]
[Black "Caruana, Fabiano"]
[Result "1-0"]
[ECO "D37"]
[WhiteElo "2753"]
[BlackElo "2811"]
[Annotator "Golubev,M"]
[PlyCount "91"]
[EventDate "2018.01.13"]
[EventType "tourn"]
[EventRounds "13"]
[EventCountry "NED"]
[EventCategory "20"]
[SourceTitle "CBM 183"]
[Source "ChessBase"]
[SourceDate "2018.03.14"]
[SourceVersion "1"]
[SourceVersionDate "2018.03.14"]
[SourceQuality "1"]
[TimeControl "40/6000+30:20/3000+30:900+30"]

1. d4 {[%emt 0:00:00]} Nf6 {[%emt 0:00:29]} 2. c4 {[%emt 0:00:00]} e6 {[%emt 0:
00:03]} 3. Nf3 {[%emt 0:00:00]} d5 {[%emt 0:00:06]} 4. Nc3 {[%emt 0:00:00]} a6
$5 {[%emt 0:00:06] Until recently, it was not possible to see this move in top
level chess (with several notable exceptions such as Staunton's 1843 game).
But times change! Today's top guys can play, generally, just anything that is
not refuted by their computers during home preparation.} 5. cxd5 {[%emt 0:01:
22]} exd5 {[%emt 0:00:09]} 6. Bg5 {[%emt 0:00:29]} Be6 {[%emt 0:00:12]} 7. e3 {
[%emt 0:01:02]} Nbd7 {[%emt 0:00:19]} 8. Bd3 {[%emt 0:07:37]} h6 {[%emt 0:00:
27]} 9. Bh4 {[%emt 0:00:52]} g5 {[%emt 0:00:06] This is a topical line, first
played with Black by GM Fedoseev in 2016.} 10. Bg3 {[%emt 0:00:04]} Nh5 {
[%emt 0:00:07]} 11. Be5 {[%emt 0:01:22] But now Caruana comes up with
something unusual.} Nhf6 $5 {[%emt 0:00:06]} ({Instead,} 11... Ng7 {was tested
in many games last year.}) 12. Bg3 {[%emt 0:00:35]} ({White also had more
active moves around here. After} 12. Qb3 {curious is} g4 13. Bxf6 Qxf6 14. Ne5
Nxe5 15. dxe5 Qxe5 16. Qxb7 Rd8 17. Qc6+ Ke7 18. O-O {where Black can even
consider} Kf6 $5 {planning to hide his king on g7.}) 12... Nh5 {[%emt 0:00:19]}
13. Nd2 {[%emt 0:20:30]} Nxg3 {[%emt 0:00:57]} 14. hxg3 {[%emt 0:00:07]} Nb6 {
[%emt 0:20:31]} ({Other ideas were} 14... c5 $5 {and 14...c6.}) 15. Qc2 {
[%emt 0:05:08]} Bd6 {[%emt 0:14:55]} ({Better could have been} 15... c6 {
after which} 16. e4 {is premature because of} dxe4 {and the d4-pawn falls.})
16. e4 $1 {[%emt 0:11:05] Now White develops the initiative.} dxe4 {[%emt 0:00:
54]} ({Possibly preferable was} 16... Qd7 $5 {, and if} 17. e5 Be7 {.}) 17.
Bxe4 {[%emt 0:00:05]} Qe7 $2 {[%emt 0:04:29]} ({Black had to play} 17... c6 {
with a surely somewhat worse position. (Karjakin intended to continue} 18.
O-O-O $1 {). But instead Caruana blunders a pawn.}) 18. Bxb7 $3 {[%emt 0:02:14]
} Rb8 {[%emt 0:05:46]} ({It turns that all discovered checks lead Black
nowhere. For example,} 18... Bd5+ 19. Kf1 Bxb7 20. Re1 $18) 19. Bc6+ {[%emt 0:
12:46]} Kf8 {[%emt 0:00:39]} 20. O-O {[%emt 0:12:31]} Qf6 {[%emt 0:03:57]} 21.
Nf3 {[%emt 0:03:09]} Kg7 {[%emt 0:05:45]} 22. Rfe1 {[%emt 0:02:24]} Rhd8 {
[%emt 0:12:10]} 23. Ne4 {[%emt 0:06:35]} Qg6 {[%emt 0:04:09]} 24. d5 $1 {
[%emt 0:02:23] An energetic way of converting the advantage. White gives his
extra pawn back, but prevents ...Nd5 and develops a crushing intiative.} Nxd5 {
[%emt 0:00:28]} 25. Bxd5 {[%emt 0:00:08]} Bxd5 {[%emt 0:00:03]} 26. Qc3+ {
[%emt 0:00:05]} f6 {[%emt 0:00:09]} 27. Nxd6 {[%emt 0:00:07]} cxd6 {[%emt 0:00:
03]} 28. Nd4 $1 $18 {[%emt 0:03:20] Black simply has too many weaknesses,
including the vulnerable king.} Rd7 {[%emt 0:11:57]} 29. Qa5 {[%emt 0:00:24]}
Bf7 {[%emt 0:02:32]} 30. b3 {[%emt 0:01:09]} Ra8 {[%emt 0:02:13]} 31. Rac1 {
[%emt 0:01:03]} d5 {[%emt 0:02:59]} 32. Rc7 {[%emt 0:01:22]} Rxc7 {[%emt 0:02:
52]} 33. Qxc7 {[%emt 0:00:02]} Qd3 {[%emt 0:02:19]} 34. Ne6+ {[%emt 0:01:39]}
Kg6 {[%emt 0:01:02]} 35. Nd8 {[%emt 0:00:06]} Rxd8 {[%emt 0:01:09]} 36. Qxd8 {
[%emt 0:00:05] And White converts his extra exchange.} Qd2 {[%emt 0:00:03]} 37.
Qe7 {[%emt 0:00:58]} Qxa2 {[%emt 0:00:07]} 38. Re3 {[%emt 0:11:52]} Qb1+ {
[%emt 0:05:44]} 39. Kh2 {[%emt 0:00:11]} Qf5 {[%emt 0:00:13]} 40. Qc7 {[%emt 0:
00:00]} d4 {[%emt 0:05:22]} 41. Re7 {[%emt 0:04:14]} Qd5 {[%emt 0:00:21]} 42.
b4 {[%emt 0:02:43]} Be6 {[%emt 0:12:48]} 43. Qb6 {[%emt 0:15:35]} Bf7 {[%emt 0:
23:00]} 44. Qxa6 {[%emt 0:00:59]} d3 {[%emt 0:03:42]} 45. Re3 {[%emt 0:00:10]}
Qc4 {[%emt 0:00:04]} 46. Qa3 {[%emt 0:00:08] Black's d3-pawn falls; there's
nothing to play for anymore.} 1-0

[Event "Tata Steel-A 80th"]
[Site "Wijk aan Zee"]
[Date "2018.01.20"]
[Round "7"]
[White "Matlakov, Maxim"]
[Black "Adhiban, Baskaran"]
[Result "1/2-1/2"]
[ECO "E68"]
[WhiteElo "2718"]
[BlackElo "2655"]
[PlyCount "106"]
[EventDate "2018.01.13"]
[EventType "tourn"]
[EventRounds "13"]
[EventCountry "NED"]
[EventCategory "20"]
[SourceTitle "CBM 183"]
[Source "ChessBase"]
[SourceDate "2018.03.14"]
[SourceVersion "1"]
[SourceVersionDate "2018.03.14"]
[SourceQuality "1"]
[TimeControl "40/6000+30:20/3000+30:900+30"]

1. d4 {[%emt 0:00:00]} g6 {[%emt 0:00:31]} 2. c4 {[%emt 0:00:44]} Bg7 {[%emt 0:
00:38]} 3. Nf3 {[%emt 0:00:41]} Nf6 {[%emt 0:00:13]} 4. g3 {[%emt 0:00:27]} O-O
{[%emt 0:01:48]} 5. Bg2 {[%emt 0:00:36]} d6 {[%emt 0:00:07]} 6. O-O {[%emt 0:
00:48]} Nbd7 {[%emt 0:00:11]} 7. Nc3 {[%emt 0:00:29]} e5 {[%emt 0:00:08]} 8. e4
{[%emt 0:00:15]} Re8 {[%emt 0:02:30]} 9. h3 {[%emt 0:02:49]} exd4 {[%emt 0:05:
53]} 10. Nxd4 {[%emt 0:00:16]} a6 {[%emt 0:00:03]} 11. Be3 {[%emt 0:03:00]} Rb8
{[%emt 0:00:55]} 12. b3 {[%emt 0:02:00]} Nc5 {[%emt 0:04:40]} 13. Qc2 {[%emt 0:
03:29]} Bd7 {[%emt 0:00:07]} 14. b4 {[%emt 0:13:27]} Ne6 {[%emt 0:00:13]} 15.
Nb3 {[%emt 0:00:26]} Qc8 {[%emt 0:19:15]} 16. Kh2 {[%emt 0:12:34]} b5 {[%emt 0:
18:01]} 17. c5 {[%emt 0:10:23]} Nd8 {[%emt 0:00:34]} 18. Rad1 {[%emt 0:08:08]}
Nc6 {[%emt 0:00:15]} 19. a3 {[%emt 0:02:28]} Ne5 {[%emt 0:04:30]} 20. Na5 {
[%emt 0:03:42]} h5 {[%emt 0:05:26]} 21. Nd5 {[%emt 0:05:38]} Nxd5 {[%emt 0:07:
47]} 22. exd5 {[%emt 0:01:26]} h4 {[%emt 0:10:36]} 23. Bg5 {[%emt 0:09:11]}
dxc5 {[%emt 0:06:12]} 24. Qxc5 {[%emt 0:01:29]} Bf5 {[%emt 0:07:50]} 25. Bxh4 {
[%emt 0:07:16]} Nd3 {[%emt 0:00:31]} 26. Qa7 {[%emt 0:00:06]} Ra8 {[%emt 0:06:
53]} 27. Qb7 {[%emt 0:00:13]} Qxb7 {[%emt 0:00:25]} 28. Nxb7 {[%emt 0:00:05]}
Nb2 {[%emt 0:00:04]} 29. d6 {[%emt 0:04:53]} Nxd1 {[%emt 0:00:20]} 30. Rxd1 {
[%emt 0:00:07]} cxd6 {[%emt 0:02:22]} 31. Nxd6 {[%emt 0:00:07]} Rad8 {[%emt 0:
00:07]} 32. Rd5 {[%emt 0:01:32]} Be6 {[%emt 0:03:12]} 33. Nxe8 {[%emt 0:00:42]}
Rxd5 {[%emt 0:00:05]} 34. Bxd5 {[%emt 0:00:08]} Bxd5 {[%emt 0:00:01]} 35. Bf6 {
[%emt 0:00:33]} Bf8 {[%emt 0:00:01]} 36. f4 {[%emt 0:04:34]} Bc6 {[%emt 0:03:
18]} 37. Nc7 {[%emt 0:00:14]} a5 {[%emt 0:01:35]} 38. Na6 {[%emt 0:04:47]} axb4
{[%emt 0:00:38]} 39. axb4 {[%emt 0:00:04]} Bb7 {[%emt 0:01:07]} 40. Nc5 {
[%emt 0:00:00]} Bd5 {[%emt 0:00:24]} 41. g4 {[%emt 0:01:58]} Bd6 {[%emt 0:23:
59]} 42. Kg3 {[%emt 0:00:33]} Kh7 {[%emt 0:00:01]} 43. h4 {[%emt 0:43:25]} Kh6
{[%emt 0:02:00]} 44. Be5 {[%emt 0:02:57]} Bxc5 {[%emt 0:02:05]} 45. bxc5 {
[%emt 0:00:34]} f5 {[%emt 0:00:07]} 46. g5+ {[%emt 0:08:07]} Kh7 {[%emt 0:04:
30]} 47. Bc3 {[%emt 0:02:22]} Bc6 {[%emt 0:01:28]} 48. Kf2 {[%emt 0:01:07]} Kg8
{[%emt 0:00:29]} 49. Ke3 {[%emt 0:01:58]} Kf7 {[%emt 0:00:05]} 50. Kd4 {
[%emt 0:00:14]} Ke6 {[%emt 0:00:05]} 51. Be1 {[%emt 0:00:24]} Bf3 {[%emt 0:00:
19]} 52. Kc3 {[%emt 0:00:22]} Kd5 {[%emt 0:02:57]} 53. Kb4 {[%emt 0:00:08]} Kc6
{[%emt 0:00:14]} 1/2-1/2

[Event "Tata Steel-A 80th"]
[Site "Wijk aan Zee"]
[Date "2018.01.20"]
[Round "7"]
[White "So, Wesley"]
[Black "Giri, Anish"]
[Result "1/2-1/2"]
[ECO "D56"]
[WhiteElo "2792"]
[BlackElo "2752"]
[PlyCount "79"]
[EventDate "2018.01.13"]
[EventType "tourn"]
[EventRounds "13"]
[EventCountry "NED"]
[EventCategory "20"]
[SourceTitle "CBM 183"]
[Source "ChessBase"]
[SourceDate "2018.03.14"]
[SourceVersion "1"]
[SourceVersionDate "2018.03.14"]
[SourceQuality "1"]
[TimeControl "40/6000+30:20/3000+30:900+30"]

1. d4 {[%emt 0:00:00]} Nf6 {[%emt 0:00:16]} 2. c4 {[%emt 0:00:00]} e6 {[%emt 0:
00:04]} 3. Nc3 {[%emt 0:00:08]} d5 {[%emt 0:00:05]} 4. Bg5 {[%emt 0:03:52]} Be7
{[%emt 0:00:22]} 5. e3 {[%emt 0:00:06]} h6 {[%emt 0:00:07]} 6. Bh4 {[%emt 0:00:
06]} O-O {[%emt 0:00:06]} 7. Nf3 {[%emt 0:00:03]} Nbd7 {[%emt 0:00:15]} 8. Be2
{[%emt 0:05:35]} c5 {[%emt 0:10:44]} 9. O-O {[%emt 0:03:07]} dxc4 {[%emt 0:04:
17]} 10. Bxc4 {[%emt 0:02:56]} cxd4 {[%emt 0:00:46]} 11. Nxd4 {[%emt 0:03:22]}
Ne5 {[%emt 0:02:42]} 12. Be2 {[%emt 0:08:09]} Bd7 {[%emt 0:11:37]} 13. Qb3 {
[%emt 0:09:50]} Qb6 {[%emt 0:02:14]} 14. Qxb6 {[%emt 0:01:56]} axb6 {[%emt 0:
00:04]} 15. Bg3 {[%emt 0:00:07]} Nc6 {[%emt 0:01:00]} 16. Ndb5 {[%emt 0:00:10]}
Na7 {[%emt 0:06:02]} 17. Nxa7 {[%emt 0:15:55]} Rxa7 {[%emt 0:00:10]} 18. Rfd1 {
[%emt 0:02:26]} Rc8 {[%emt 0:04:38]} 19. Bd6 {[%emt 0:02:19]} Kf8 {[%emt 0:04:
11]} 20. Bxe7+ {[%emt 0:04:14]} Kxe7 {[%emt 0:00:08]} 21. Rd4 {[%emt 0:00:03]}
Bc6 {[%emt 0:06:16]} 22. Rb4 {[%emt 0:00:40]} Nd7 {[%emt 0:07:28]} 23. Rd1 {
[%emt 0:01:55]} Ra5 {[%emt 0:00:54]} 24. f3 {[%emt 0:05:19]} Rc5 {[%emt 0:00:
35]} 25. Kf2 {[%emt 0:00:42]} Ra8 {[%emt 0:02:13]} 26. h4 {[%emt 0:02:45]} g5 {
[%emt 0:03:49]} 27. Rc1 {[%emt 0:03:49]} Rca5 {[%emt 0:05:41]} 28. e4 {[%emt 0:
03:59]} Rg8 {[%emt 0:03:10]} 29. hxg5 {[%emt 0:02:36]} hxg5 {[%emt 0:00:27]}
30. Rd4 {[%emt 0:00:42]} Ne5 {[%emt 0:02:22]} 31. Rh1 {[%emt 0:06:17]} Raa8 {
[%emt 0:01:14]} 32. Rh5 {[%emt 0:00:29]} Nd7 {[%emt 0:00:44]} 33. Ke3 {[%emt 0:
00:59]} Nf6 {[%emt 0:02:35]} 34. Rh1 {[%emt 0:00:05]} Rgc8 {[%emt 0:04:09]} 35.
g3 {[%emt 0:02:52]} Rg8 {[%emt 0:01:58]} 36. a3 {[%emt 0:06:53]} Rgc8 {[%emt 0:
07:26]} 37. Rb4 {[%emt 0:06:16]} Nd7 {[%emt 0:00:08]} 38. Rd4 {[%emt 0:00:14]}
Nf6 {[%emt 0:00:06]} 39. Rb4 {[%emt 0:00:03]} Nd7 {[%emt 0:00:04]} 40. Rd4
1/2-1/2

[Event "Tata Steel-A 80th"]
[Site "Wijk aan Zee"]
[Date "2018.01.21"]
[Round "8"]
[White "Kramnik, Vladimir"]
[Black "So, Wesley"]
[Result "1/2-1/2"]
[ECO "E05"]
[WhiteElo "2787"]
[BlackElo "2792"]
[PlyCount "56"]
[EventDate "2018.01.13"]
[EventType "tourn"]
[EventRounds "13"]
[EventCountry "NED"]
[EventCategory "20"]
[SourceTitle "CBM 183"]
[Source "ChessBase"]
[SourceDate "2018.03.14"]
[SourceVersion "1"]
[SourceVersionDate "2018.03.14"]
[SourceQuality "1"]
[TimeControl "40/6000+30:20/3000+30:900+30"]

1. Nf3 {[%emt 0:00:00]} d5 {[%emt 0:00:07]} 2. g3 {[%emt 0:00:00]} Nf6 {
[%emt 0:02:02]} 3. Bg2 {[%emt 0:00:10]} e6 {[%emt 0:01:30]} 4. O-O {[%emt 0:00:
14]} Be7 {[%emt 0:00:49]} 5. c4 {[%emt 0:00:21]} O-O {[%emt 0:01:05]} 6. d4 {
[%emt 0:00:26]} dxc4 {[%emt 0:00:56]} 7. Qa4 {[%emt 0:00:54]} a6 {[%emt 0:00:
29]} 8. Qxc4 {[%emt 0:00:30]} b5 {[%emt 0:00:05]} 9. Qc2 {[%emt 0:00:03]} Bb7 {
[%emt 0:00:04]} 10. Bd2 {[%emt 0:00:13]} Be4 {[%emt 0:00:27]} 11. Qc1 {[%emt 0:
02:21]} c6 {[%emt 0:00:10]} 12. Rd1 {[%emt 0:00:58]} Nbd7 {[%emt 0:01:55]} 13.
Nc3 {[%emt 0:02:42]} Bg6 {[%emt 0:00:05]} 14. Bg5 {[%emt 0:01:33]} Rc8 {
[%emt 0:07:30]} 15. a3 {[%emt 0:05:02]} a5 {[%emt 0:07:37]} 16. h4 {[%emt 0:29:
52]} h6 {[%emt 0:08:29]} 17. Bxf6 {[%emt 0:02:14]} Bxf6 {[%emt 0:00:09]} 18.
Qe3 {[%emt 0:03:33]} Qb6 {[%emt 0:05:15]} 19. Ne4 {[%emt 0:02:51]} Be7 {
[%emt 0:08:09]} 20. Rac1 {[%emt 0:03:20]} Rfd8 {[%emt 0:00:25]} 21. Nc5 {
[%emt 0:19:32]} Nxc5 {[%emt 0:08:52]} 22. Ne5 {[%emt 0:00:14]} Nd7 {[%emt 0:07:
29]} 23. Nxg6 {[%emt 0:02:46]} Bf6 {[%emt 0:03:30]} 24. g4 {[%emt 0:12:54]} c5
{[%emt 0:17:41]} 25. dxc5 {[%emt 0:04:38]} Rxc5 {[%emt 0:01:41]} 26. Rxc5 {
[%emt 0:01:10]} Qxc5 {[%emt 0:04:36]} 27. Rxd7 {[%emt 0:00:42]} Qxe3 {[%emt 0:
00:03]} 28. Rxd8+ {[%emt 0:00:04]} Bxd8 {[%emt 0:00:04]} 1/2-1/2

[Event "Tata Steel-A 80th"]
[Site "Wijk aan Zee"]
[Date "2018.01.21"]
[Round "8"]
[White "Svidler, Peter"]
[Black "Anand, Viswanathan"]
[Result "1/2-1/2"]
[ECO "D40"]
[WhiteElo "2768"]
[BlackElo "2767"]
[PlyCount "54"]
[EventDate "2018.01.13"]
[EventType "tourn"]
[EventRounds "13"]
[EventCountry "NED"]
[EventCategory "20"]
[SourceTitle "CBM 183"]
[Source "ChessBase"]
[SourceDate "2018.03.14"]
[SourceVersion "1"]
[SourceVersionDate "2018.03.14"]
[SourceQuality "1"]
[TimeControl "40/6000+30:20/3000+30:900+30"]

1. c4 {[%emt 0:00:00]} c5 {[%emt 0:00:08]} 2. Nf3 {[%emt 0:00:00]} Nc6 {
[%emt 0:00:13]} 3. Nc3 {[%emt 0:01:07]} Nf6 {[%emt 0:00:18]} 4. e3 {[%emt 0:01:
26]} e6 {[%emt 0:01:37]} 5. d4 {[%emt 0:01:43]} d5 {[%emt 0:00:34]} 6. a3 {
[%emt 0:00:25]} a6 {[%emt 0:02:32]} 7. dxc5 {[%emt 0:01:48]} Bxc5 {[%emt 0:00:
09]} 8. b4 {[%emt 0:00:08]} Bd6 {[%emt 0:07:53]} 9. Bb2 {[%emt 0:04:23]} O-O {
[%emt 0:03:37]} 10. cxd5 {[%emt 0:06:13]} exd5 {[%emt 0:00:43]} 11. Be2 {
[%emt 0:00:06]} Be6 {[%emt 0:04:10]} 12. O-O {[%emt 0:02:00]} Qe7 {[%emt 0:00:
58]} 13. Rc1 {[%emt 0:07:26]} a5 {[%emt 0:08:51]} 14. Nb5 {[%emt 0:04:25]} Bb8
{[%emt 0:00:50]} 15. bxa5 {[%emt 0:02:57]} Nxa5 {[%emt 0:04:14]} 16. Bxf6 {
[%emt 0:11:06]} Qxf6 {[%emt 0:00:42]} 17. Nc7 {[%emt 0:00:29]} Bxc7 {[%emt 0:
01:06]} 18. Rxc7 {[%emt 0:00:05]} Rac8 {[%emt 0:09:09]} 19. Rxc8 {[%emt 0:03:
47]} Rxc8 {[%emt 0:00:25]} 20. Nd4 {[%emt 0:00:07]} Nc4 {[%emt 0:03:46]} 21.
Nxe6 {[%emt 0:05:10]} fxe6 {[%emt 0:00:31]} 22. e4 {[%emt 0:00:44]} d4 {
[%emt 0:02:06]} 23. Bxc4 {[%emt 0:03:34]} Rxc4 {[%emt 0:00:22]} 24. Qb3 {
[%emt 0:00:03]} Rc7 {[%emt 0:00:09]} 25. f4 {[%emt 0:00:41]} h6 {[%emt 0:02:07]
} 26. f5 {[%emt 0:01:01]} Re7 {[%emt 0:00:43]} 27. fxe6 {[%emt 0:02:40]} Qxe6 {
[%emt 0:00:18]} 1/2-1/2

[Event "Tata Steel-A 80th"]
[Site "Wijk aan Zee"]
[Date "2018.01.21"]
[Round "8"]
[White "Wei, Yi"]
[Black "Matlakov, Maxim"]
[Result "1/2-1/2"]
[ECO "C47"]
[WhiteElo "2743"]
[BlackElo "2718"]
[PlyCount "51"]
[EventDate "2018.01.13"]
[EventType "tourn"]
[EventRounds "13"]
[EventCountry "NED"]
[EventCategory "20"]
[SourceTitle "CBM 183"]
[Source "ChessBase"]
[SourceDate "2018.03.14"]
[SourceVersion "1"]
[SourceVersionDate "2018.03.14"]
[SourceQuality "1"]
[TimeControl "40/6000+30:20/3000+30:900+30"]

1. e4 {[%emt 0:00:00]} e5 {[%emt 0:00:09]} 2. Nf3 {[%emt 0:00:00]} Nc6 {
[%emt 0:00:05]} 3. Nc3 {[%emt 0:00:00]} Nf6 {[%emt 0:00:18]} 4. d4 {[%emt 0:00:
02]} exd4 {[%emt 0:01:01]} 5. Nxd4 {[%emt 0:00:14]} Bb4 {[%emt 0:00:35]} 6.
Nxc6 {[%emt 0:00:13]} bxc6 {[%emt 0:00:06]} 7. Bd3 {[%emt 0:00:09]} d5 {
[%emt 0:01:00]} 8. exd5 {[%emt 0:01:43]} O-O {[%emt 0:00:09]} 9. O-O {[%emt 0:
01:09]} cxd5 {[%emt 0:00:05]} 10. Bg5 {[%emt 0:01:41]} c6 {[%emt 0:02:44]} 11.
Qf3 {[%emt 0:02:47]} Bd6 {[%emt 0:08:34]} 12. Rae1 {[%emt 0:03:52]} Rb8 {
[%emt 0:05:30]} 13. Nd1 {[%emt 0:03:56]} h6 {[%emt 0:03:53]} 14. Bxf6 {[%emt 0:
00:23]} Qxf6 {[%emt 0:00:13]} 15. Qxf6 {[%emt 0:00:07]} gxf6 {[%emt 0:00:03]}
16. b3 {[%emt 0:01:18]} a5 {[%emt 0:09:01]} 17. Ne3 {[%emt 0:01:12]} Bb4 {
[%emt 0:13:32]} 18. Re2 {[%emt 0:00:18]} a4 {[%emt 0:05:34]} 19. Nf5 {[%emt 0:
01:21]} Bxf5 {[%emt 0:05:09]} 20. Bxf5 {[%emt 0:00:09]} Rfd8 {[%emt 0:05:05]}
21. Re3 {[%emt 0:05:47]} axb3 {[%emt 0:03:52]} 22. axb3 {[%emt 0:00:11]} c5 {
[%emt 0:04:55]} 23. Rg3+ {[%emt 0:02:31]} Kf8 {[%emt 0:03:01]} 24. Rh3 {
[%emt 0:02:27]} Kg7 {[%emt 0:00:27]} 25. Rg3+ {[%emt 0:00:06]} Kf8 {[%emt 0:00:
06]} 26. Rh3 1/2-1/2